[Event "Titled Tuesday Blitz February 22 Late 2022"]
[White "Zapata Arbelaez, Estiven"]
[Black "Cardoso Cardoso, Jose Gabriel"]
[WhiteFideId "4406311"]
[BlackFideId "4430492"]
[WhiteElo "2067"]
[BlackElo "2451"]
[Result "0-1"]
[Round "02"]
[TimeControl "180+1"]
[Date "2022.02.23"]
[WhiteClock "0:00:59"]
[BlackClock "0:02:13"]

1. d4 {[%clk 0:02:43]}  Nf6 {[%clk 0:02:58]} 2. Nf3 {[%clk 0:02:41]}  g6 {[%clk 0:02:58]} 3. c4 {[%clk 0:02:38]}  Bg7 {[%clk 0:02:58]} 4. Nc3 {[%clk 0:02:37]}  c5 {[%clk 0:02:57]} 5. e3 {[%clk 0:02:36]}  O-O {[%clk 0:02:57]} 6. Be2 {[%clk 0:02:35]}  cxd4 {[%clk 0:02:52]} 7. exd4 {[%clk 0:02:33]}  d5 {[%clk 0:02:52]} 8. O-O {[%clk 0:02:32]}  Nc6 {[%clk 0:02:43]} 9. h3 {[%clk 0:02:10]}  dxc4 {[%clk 0:02:36]} 10. Bxc4 {[%clk 0:02:10]}  Na5 {[%clk 0:02:36]} 11. Bb5 {[%clk 0:02:05]}  a6 {[%clk 0:02:34]} 12. Ba4 {[%clk 0:02:04]}  Bd7 {[%clk 0:02:30]} 13. Bf4 {[%clk 0:01:58]}  Rc8 {[%clk 0:02:28]} 14. Bb3 {[%clk 0:01:41]}  Nxb3 {[%clk 0:02:27]} 15. Qxb3 {[%clk 0:01:41]}  Bc6 {[%clk 0:02:25]} 16. Ne2 {[%clk 0:01:26]}  Qd5 {[%clk 0:02:22]} 17. Rac1 {[%clk 0:01:02]}  Qxb3 {[%clk 0:02:20]} 18. axb3 {[%clk 0:01:02]}  Bxf3 {[%clk 0:02:16]} 19. gxf3 {[%clk 0:01:01]}  Nd5 {[%clk 0:02:16]} 20. Be5 {[%clk 0:01:01]}  Bh6 {[%clk 0:02:14]} 21. f4 {[%clk 0:00:59]}  f6 {[%clk 0:02:13]} 0-1


[Site "https://www.chess.com"]

[Event "Titled Tuesday Blitz February 22 Late 2022"]
[White "Zong, Davis"]
[Black "Golubovskis, Maksims"]
[WhiteFideId "30903955"]
[BlackFideId "11608528"]
[WhiteElo "2061"]
[BlackElo "2066"]
[Result "1-0"]
[Round "02"]
[TimeControl "180+1"]
[Date "2022.02.23"]
[WhiteClock "0:00:26"]
[BlackClock "0:00:31"]

1. d4 {[%clk 0:03:00]}  Nf6 {[%clk 0:02:54]} 2. c4 {[%clk 0:03:01]}  c5 {[%clk 0:02:53]} 3. d5 {[%clk 0:02:59]}  b5 {[%clk 0:02:54]} 4. cxb5 {[%clk 0:03:00]}  a6 {[%clk 0:02:54]} 5. bxa6 {[%clk 0:03:00]}  g6 {[%clk 0:02:51]} 6. Nc3 {[%clk 0:03:00]}  Bg7 {[%clk 0:02:51]} 7. e4 {[%clk 0:03:00]}  O-O {[%clk 0:02:51]} 8. Nf3 {[%clk 0:02:48]}  Qa5 {[%clk 0:02:50]} 9. Bd3 {[%clk 0:02:42]}  Nxd5 {[%clk 0:02:36]} 10. exd5 {[%clk 0:02:30]}  Bxc3+ {[%clk 0:02:35]} 11. bxc3 {[%clk 0:02:29]}  Qxc3+ {[%clk 0:02:36]} 12. Qd2 {[%clk 0:02:27]}  Qxa1 {[%clk 0:02:35]} 13. O-O {[%clk 0:02:27]}  Bxa6 {[%clk 0:02:21]} 14. Bb2 {[%clk 0:01:48]}  Qxa2 {[%clk 0:02:18]} 15. Qc3 {[%clk 0:01:12]}  f6 {[%clk 0:01:46]} 16. Ra1 {[%clk 0:01:09]}  Qxd5 {[%clk 0:01:46]} 17. Rxa6 {[%clk 0:01:07]}  Nxa6 {[%clk 0:01:45]} 18. Bc4 {[%clk 0:01:07]}  e6 {[%clk 0:01:32]} 19. Bxd5 {[%clk 0:01:06]}  exd5 {[%clk 0:01:33]} 20. g3 {[%clk 0:00:47]}  d6 {[%clk 0:01:25]} 21. Qb3 {[%clk 0:00:35]}  Nb4 {[%clk 0:01:22]} 22. Bc3 {[%clk 0:00:35]}  Rfb8 {[%clk 0:01:01]} 23. Bxf6 {[%clk 0:00:27]}  c4 {[%clk 0:00:36]} 24. Qe3 {[%clk 0:00:27]}  Ra1+ {[%clk 0:00:31]} 25. Bxa1 {[%clk 0:00:26]} 1-0


[Site "https://www.chess.com"]

[Event "Titled Tuesday Blitz February 22 Late 2022"]
[White "Aggelis, Nikolaos"]
[Black "Stanisz, Patryk"]
[WhiteFideId "4213220"]
[BlackFideId "1123106"]
[WhiteElo "2154"]
[BlackElo "1876"]
[Result "1/2-1/2"]
[Round "03"]
[TimeControl "180+1"]
[Date "2022.02.23"]
[WhiteClock "0:01:40"]
[BlackClock "0:00:13"]

1. d4 {[%clk 0:03:00]}  d5 {[%clk 0:02:59]} 2. g3 {[%clk 0:03:01]}  Nf6 {[%clk 0:02:58]} 3. Nf3 {[%clk 0:03:00]}  c6 {[%clk 0:02:57]} 4. Bg2 {[%clk 0:02:51]}  Bf5 {[%clk 0:02:57]} 5. c4 {[%clk 0:02:47]}  e6 {[%clk 0:02:57]} 6. Nc3 {[%clk 0:02:46]}  Nbd7 {[%clk 0:02:56]} 7. Nh4 {[%clk 0:02:45]}  Bg6 {[%clk 0:02:55]} 8. Nxg6 {[%clk 0:02:45]}  hxg6 {[%clk 0:02:55]} 9. Qd3 {[%clk 0:02:45]}  Bd6 {[%clk 0:02:45]} 10. e4 {[%clk 0:02:44]}  dxe4 {[%clk 0:02:46]} 11. Nxe4 {[%clk 0:02:45]}  Nxe4 {[%clk 0:02:47]} 12. Bxe4 {[%clk 0:02:44]}  Qa5+ {[%clk 0:02:43]} 13. Bd2 {[%clk 0:02:44]}  Bb4 {[%clk 0:02:44]} 14. Bxg6 {[%clk 0:02:37]}  Bxd2+ {[%clk 0:02:40]} 15. Kd1 {[%clk 0:02:32]}  Bh6 {[%clk 0:02:08]} 16. Be4 {[%clk 0:02:25]}  O-O-O {[%clk 0:02:01]} 17. Qc3 {[%clk 0:02:23]}  Qxc3 {[%clk 0:01:56]} 18. bxc3 {[%clk 0:02:24]}  f5 {[%clk 0:01:35]} 19. Bf3 {[%clk 0:02:19]}  e5 {[%clk 0:01:30]} 20. Kc2 {[%clk 0:02:17]}  exd4 {[%clk 0:01:25]} 21. cxd4 {[%clk 0:02:18]}  g6 {[%clk 0:01:21]} 22. Rad1 {[%clk 0:02:15]}  Nb6 {[%clk 0:01:16]} 23. Kb3 {[%clk 0:02:15]}  Bg7 {[%clk 0:01:17]} 24. d5 {[%clk 0:02:14]}  cxd5 {[%clk 0:01:15]} 25. cxd5 {[%clk 0:02:13]}  Rd6 {[%clk 0:01:07]} 26. h4 {[%clk 0:02:12]}  Rhd8 {[%clk 0:01:04]} 27. h5 {[%clk 0:02:12]}  g5 {[%clk 0:01:02]} 28. a4 {[%clk 0:02:10]}  Nxd5 {[%clk 0:00:56]} 29. h6 {[%clk 0:02:11]}  Bh8 {[%clk 0:00:56]} 30. Rh5 {[%clk 0:01:59]}  g4 {[%clk 0:00:45]} 31. Bxd5 {[%clk 0:01:59]}  Rxd5 {[%clk 0:00:43]} 32. Rxd5 {[%clk 0:01:59]}  Rxd5 {[%clk 0:00:44]} 33. Rg5 {[%clk 0:02:00]}  Bd4 {[%clk 0:00:20]} 34. Kc4 {[%clk 0:01:56]}  Rd8 {[%clk 0:00:19]} 35. h7 {[%clk 0:01:57]}  Bh8 {[%clk 0:00:11]} 36. Rg8 {[%clk 0:01:57]}  Kd7 {[%clk 0:00:09]} 37. Kd5 {[%clk 0:01:48]}  Re8 {[%clk 0:00:07]} 38. Rxe8 {[%clk 0:01:39]}  Kxe8 {[%clk 0:00:07]} 39. Ke6 {[%clk 0:01:39]}  Kf8 {[%clk 0:00:07]} 40. Kxf5 {[%clk 0:01:40]}  Kg7 {[%clk 0:00:08]} 41. Kxg4 {[%clk 0:01:40]}  Kxh7 {[%clk 0:00:08]} 42. Kf5 {[%clk 0:01:41]}  b6 {[%clk 0:00:07]} 43. Ke6 {[%clk 0:01:41]}  a6 {[%clk 0:00:07]} 44. Kd5 {[%clk 0:01:39]}  b5 {[%clk 0:00:04]} 45. axb5 {[%clk 0:01:38]}  axb5 {[%clk 0:00:05]} 46. Kc5 {[%clk 0:01:39]}  b4 {[%clk 0:00:03]} 47. Kxb4 {[%clk 0:01:39]}  Bd4 {[%clk 0:00:04]} 48. f3 {[%clk 0:01:39]}  Bf2 {[%clk 0:00:05]} 49. g4 {[%clk 0:01:39]}  Kg6 {[%clk 0:00:06]} 50. Kc4 {[%clk 0:01:40]}  Kg5 {[%clk 0:00:06]} 51. Kd3 {[%clk 0:01:39]}  Bg3 {[%clk 0:00:06]} 52. Ke4 {[%clk 0:01:38]}  Bf4 {[%clk 0:00:07]} 53. Kd5 {[%clk 0:01:38]}  Bc7 {[%clk 0:00:08]} 54. Ke4 {[%clk 0:01:38]}  Bf4 {[%clk 0:00:09]} 55. Kd5 {[%clk 0:01:38]}  Bg3 {[%clk 0:00:10]} 56. Ke6 {[%clk 0:01:37]}  Bf4 {[%clk 0:00:11]} 57. Kf7 {[%clk 0:01:37]}  Bg3 {[%clk 0:00:12]} 58. Ke6 {[%clk 0:01:38]}  Kf4 {[%clk 0:00:12]} 59. Kf6 {[%clk 0:01:38]}  Bh4+ {[%clk 0:00:12]} 60. Kg6 {[%clk 0:01:38]}  Bg5 {[%clk 0:00:13]} 61. Kh5 {[%clk 0:01:39]}  Bf6 {[%clk 0:00:13]} 62. Kg6 {[%clk 0:01:39]}  Bd4 {[%clk 0:00:12]} 63. g5 {[%clk 0:01:39]}  Kxf3 {[%clk 0:00:13]} 64. Kf7 {[%clk 0:01:39]}  Kg4 {[%clk 0:00:13]} 65. g6 {[%clk 0:01:40]}  Kg5 {[%clk 0:00:13]} 66. g7 {[%clk 0:01:40]}  Bxg7 {[%clk 0:00:13]} 1/2-1/2


[Site "https://www.chess.com"]

[Event "Titled Tuesday Blitz February 22 Late 2022"]
[White "Aldokhin, Ivan"]
[Black "Hess, Robert"]
[WhiteFideId "24115720"]
[BlackFideId "2022036"]
[WhiteElo "2231"]
[BlackElo "2557"]
[Result "0-1"]
[Round "03"]
[TimeControl "180+1"]
[Date "2022.02.23"]
[WhiteClock "0:00:05"]
[BlackClock "0:00:05"]

1. e4 {[%clk 0:02:58]}  g6 {[%clk 0:03:00]} 2. d4 {[%clk 0:02:57]}  Bg7 {[%clk 0:03:01]} 3. Nc3 {[%clk 0:02:58]}  a6 {[%clk 0:03:01]} 4. Nf3 {[%clk 0:02:56]}  d6 {[%clk 0:03:00]} 5. h3 {[%clk 0:02:55]}  Nd7 {[%clk 0:03:00]} 6. Bg5 {[%clk 0:02:45]}  h6 {[%clk 0:03:00]} 7. Bh4 {[%clk 0:02:44]}  b5 {[%clk 0:02:57]} 8. a4 {[%clk 0:02:29]}  b4 {[%clk 0:02:57]} 9. Nd5 {[%clk 0:02:29]}  Bb7 {[%clk 0:02:57]} 10. Bc4 {[%clk 0:02:07]}  g5 {[%clk 0:02:36]} 11. Bg3 {[%clk 0:01:53]}  e6 {[%clk 0:02:33]} 12. Nxb4 {[%clk 0:01:48]}  a5 {[%clk 0:02:22]} 13. Na2 {[%clk 0:01:39]}  Bxe4 {[%clk 0:02:19]} 14. Nc3 {[%clk 0:01:37]}  Bb7 {[%clk 0:02:09]} 15. h4 {[%clk 0:01:20]}  g4 {[%clk 0:02:06]} 16. Nh2 {[%clk 0:01:20]}  h5 {[%clk 0:02:05]} 17. f3 {[%clk 0:01:17]}  Nh6 {[%clk 0:01:57]} 18. fxg4 {[%clk 0:01:07]}  hxg4 {[%clk 0:01:56]} 19. Nxg4 {[%clk 0:01:07]}  Nf5 {[%clk 0:01:55]} 20. Bf2 {[%clk 0:01:03]}  Bxg2 {[%clk 0:01:43]} 21. Rh2 {[%clk 0:01:01]}  Bb7 {[%clk 0:01:17]} 22. h5 {[%clk 0:00:50]}  Qg5 {[%clk 0:01:10]} 23. Qe2 {[%clk 0:00:43]}  Nxd4 {[%clk 0:01:04]} 24. Bxd4 {[%clk 0:00:20]}  Bxd4 {[%clk 0:01:04]} 25. Nb5 {[%clk 0:00:15]}  Bb6 {[%clk 0:00:51]} 26. h6 {[%clk 0:00:11]}  Ne5 {[%clk 0:00:43]} 27. Nxe5 {[%clk 0:00:08]}  dxe5 {[%clk 0:00:39]} 28. Rd1 {[%clk 0:00:06]}  Qg3+ {[%clk 0:00:22]} 29. Rf2 {[%clk 0:00:03]}  Rxh6 {[%clk 0:00:20]} 30. Nxc7+ {[%clk 0:00:01]}  Bxc7 {[%clk 0:00:18]} 31. Bb5+ {[%clk 0:00:02]}  Kf8 {[%clk 0:00:17]} 32. Rd3 {[%clk 0:00:02]}  Rh1+ {[%clk 0:00:16]} 33. Kd2 {[%clk 0:00:02]}  Qg5+ {[%clk 0:00:16]} 34. Kc3 {[%clk 0:00:02]}  Qg7 {[%clk 0:00:09]} 35. Rd7 {[%clk 0:00:02]}  e4+ {[%clk 0:00:08]} 36. Kb3 {[%clk 0:00:02]}  Bd5+ {[%clk 0:00:08]} 37. c4 {[%clk 0:00:02]}  Rh3+ {[%clk 0:00:08]} 38. Ka2 {[%clk 0:00:02]}  Rf3 {[%clk 0:00:07]} 39. cxd5 {[%clk 0:00:02]}  Rxf2 {[%clk 0:00:06]} 40. Qxf2 {[%clk 0:00:02]}  Be5 {[%clk 0:00:05]} 41. dxe6 {[%clk 0:00:02]}  Kg8 {[%clk 0:00:04]} 42. Rxf7 {[%clk 0:00:02]}  Qg6 {[%clk 0:00:04]} 43. Bc4 {[%clk 0:00:03]}  Rc8 {[%clk 0:00:04]} 44. e7 {[%clk 0:00:03]}  Kh8 {[%clk 0:00:04]} 45. Rf8+ {[%clk 0:00:04]}  Kg7 {[%clk 0:00:04]} 46. Rg8+ {[%clk 0:00:04]}  Rxg8 {[%clk 0:00:04]} 47. Bxg8 {[%clk 0:00:05]}  Kxg8 {[%clk 0:00:05]} 48. Qg2 {[%clk 0:00:04]}  Qxg2 {[%clk 0:00:05]} 49. e8=Q+ {[%clk 0:00:05]}  Kh7 {[%clk 0:00:05]} 50. Qxe5 {[%clk 0:00:05]}  Qg8+ {[%clk 0:00:06]} 51. Ka3 {[%clk 0:00:05]}  Qf8+ {[%clk 0:00:06]} 52. Ka2 {[%clk 0:00:06]}  Qb4 {[%clk 0:00:06]} 53. Qe7+ {[%clk 0:00:05]}  Qxe7 {[%clk 0:00:05]} 0-1


[Site "https://www.chess.com"]

[Event "Titled Tuesday Blitz February 22 Late 2022"]
[White "Aradhya, Garg"]
[Black "Kopczynski, Michal"]
[WhiteFideId "25006746"]
[BlackFideId "1124200"]
[WhiteElo "2169"]
[BlackElo "2235"]
[Result "1/2-1/2"]
[Round "03"]
[TimeControl "180+1"]
[Date "2022.02.23"]
[WhiteClock "0:01:04"]
[BlackClock "0:00:25"]

1. d4 {[%clk 0:03:00]}  Nf6 {[%clk 0:02:59]} 2. c4 {[%clk 0:03:01]}  g6 {[%clk 0:03:00]} 3. g3 {[%clk 0:02:59]}  Bg7 {[%clk 0:03:00]} 4. Bg2 {[%clk 0:03:00]}  d6 {[%clk 0:03:01]} 5. Nc3 {[%clk 0:03:00]}  O-O {[%clk 0:03:01]} 6. Nf3 {[%clk 0:03:00]}  Nc6 {[%clk 0:03:02]} 7. O-O {[%clk 0:02:59]}  Nd7 {[%clk 0:03:02]} 8. Bg5 {[%clk 0:02:44]}  h6 {[%clk 0:03:00]} 9. Be3 {[%clk 0:02:42]}  e5 {[%clk 0:02:59]} 10. dxe5 {[%clk 0:02:41]}  Ndxe5 {[%clk 0:02:58]} 11. Nxe5 {[%clk 0:02:39]}  Nxe5 {[%clk 0:02:59]} 12. b3 {[%clk 0:02:23]}  Nxc4 {[%clk 0:02:51]} 13. bxc4 {[%clk 0:02:23]}  Bxc3 {[%clk 0:02:51]} 14. Bxh6 {[%clk 0:02:23]}  Bg7 {[%clk 0:02:49]} 15. Bxg7 {[%clk 0:02:21]}  Kxg7 {[%clk 0:02:50]} 16. Rb1 {[%clk 0:02:21]}  Rb8 {[%clk 0:02:44]} 17. Qd4+ {[%clk 0:02:20]}  Qf6 {[%clk 0:02:40]} 18. Qxa7 {[%clk 0:02:20]}  Be6 {[%clk 0:02:28]} 19. Rxb7 {[%clk 0:02:20]}  Rxb7 {[%clk 0:01:33]} 20. Qxb7 {[%clk 0:02:21]}  Bxc4 {[%clk 0:01:31]} 21. Qxc7 {[%clk 0:02:17]}  Bxe2 {[%clk 0:01:19]} 22. Re1 {[%clk 0:02:16]}  Bg4 {[%clk 0:01:08]} 23. h3 {[%clk 0:02:11]}  Be6 {[%clk 0:01:04]} 24. Qxd6 {[%clk 0:02:09]}  Bxa2 {[%clk 0:01:03]} 25. Qxf6+ {[%clk 0:02:06]}  Kxf6 {[%clk 0:01:04]} 26. h4 {[%clk 0:02:06]}  Be6 {[%clk 0:01:03]} 27. f4 {[%clk 0:02:05]}  Rb8 {[%clk 0:01:00]} 28. Re2 {[%clk 0:02:05]}  Rb3 {[%clk 0:00:59]} 29. Kf2 {[%clk 0:02:05]}  Rd3 {[%clk 0:00:55]} 30. Bf3 {[%clk 0:02:04]}  Bd5 {[%clk 0:00:50]} 31. Re3 {[%clk 0:02:03]}  Rxe3 {[%clk 0:00:43]} 32. Kxe3 {[%clk 0:02:02]}  Be6 {[%clk 0:00:43]} 33. g4 {[%clk 0:02:02]}  Bd7 {[%clk 0:00:40]} 34. g5+ {[%clk 0:01:50]}  Kg7 {[%clk 0:00:41]} 35. Kd4 {[%clk 0:01:41]}  Be6 {[%clk 0:00:40]} 36. Ke5 {[%clk 0:01:40]}  Bh3 {[%clk 0:00:17]} 37. Be4 {[%clk 0:01:36]}  Bg4 {[%clk 0:00:16]} 38. f5 {[%clk 0:01:36]}  gxf5 {[%clk 0:00:15]} 39. Bxf5 {[%clk 0:01:36]}  Bf3 {[%clk 0:00:16]} 40. Bd3 {[%clk 0:01:23]}  Bg4 {[%clk 0:00:15]} 41. Be4 {[%clk 0:01:20]}  Bh5 {[%clk 0:00:15]} 42. Bf5 {[%clk 0:01:17]}  Bf3 {[%clk 0:00:14]} 43. Kf4 {[%clk 0:01:16]}  Bh5 {[%clk 0:00:14]} 44. Bg4 {[%clk 0:00:57]}  Bxg4 {[%clk 0:00:14]} 45. Kxg4 {[%clk 0:00:58]}  f6 {[%clk 0:00:14]} 46. Kf5 {[%clk 0:00:58]}  fxg5 {[%clk 0:00:15]} 47. h5 {[%clk 0:00:58]}  g4 {[%clk 0:00:12]} 48. Kxg4 {[%clk 0:00:58]}  Kh8 {[%clk 0:00:12]} 49. Kf5 {[%clk 0:00:58]}  Kg8 {[%clk 0:00:13]} 50. Kg6 {[%clk 0:00:58]}  Kh8 {[%clk 0:00:13]} 51. Kh6 {[%clk 0:00:59]}  Kg8 {[%clk 0:00:14]} 52. Kg6 {[%clk 0:00:59]}  Kh8 {[%clk 0:00:14]} 53. Kh6 {[%clk 0:00:59]}  Kg8 {[%clk 0:00:15]} 54. Kg5 {[%clk 0:01:00]}  Kh8 {[%clk 0:00:15]} 55. Kg6 {[%clk 0:01:00]}  Kg8 {[%clk 0:00:16]} 56. Kh6 {[%clk 0:01:01]}  Kh8 {[%clk 0:00:16]} 57. Kg6 {[%clk 0:01:01]}  Kg8 {[%clk 0:00:16]} 58. Kf6 {[%clk 0:01:01]}  Kh8 {[%clk 0:00:17]} 59. h6 {[%clk 0:01:01]}  Kg8 {[%clk 0:00:17]} 60. Kg6 {[%clk 0:01:01]}  Kh8 {[%clk 0:00:18]} 61. Kg5 {[%clk 0:01:01]}  Kg8 {[%clk 0:00:18]} 62. Kh5 {[%clk 0:01:01]}  Kh8 {[%clk 0:00:19]} 63. Kg6 {[%clk 0:01:02]}  Kg8 {[%clk 0:00:19]} 64. Kg5 {[%clk 0:01:02]}  Kh8 {[%clk 0:00:20]} 65. Kf6 {[%clk 0:01:02]}  Kg8 {[%clk 0:00:20]} 66. Kf5 {[%clk 0:01:01]}  Kh8 {[%clk 0:00:21]} 67. Kg5 {[%clk 0:01:01]}  Kg8 {[%clk 0:00:21]} 68. Kg4 {[%clk 0:01:01]}  Kh8 {[%clk 0:00:22]} 69. Kh4 {[%clk 0:01:02]}  Kg8 {[%clk 0:00:23]} 70. Kg3 {[%clk 0:01:02]}  Kh8 {[%clk 0:00:23]} 71. Kg4 {[%clk 0:01:02]}  Kg8 {[%clk 0:00:24]} 72. Kh5 {[%clk 0:01:02]}  Kh8 {[%clk 0:00:24]} 73. Kg6 {[%clk 0:01:03]}  Kg8 {[%clk 0:00:24]} 74. h7+ {[%clk 0:01:03]}  Kh8 {[%clk 0:00:25]} 75. Kf7 {[%clk 0:01:04]}  Kxh7 {[%clk 0:00:25]} 1/2-1/2


[Site "https://www.chess.com"]

[Event "Titled Tuesday Blitz February 22 Late 2022"]
[White "Araujo Filho, Luiz Antonio Coel"]
[Black "Moskvin, Anatoly"]
[WhiteFideId "2130661"]
[BlackFideId "24199990"]
[WhiteElo "2196"]
[BlackElo "2079"]
[Result "1-0"]
[Round "03"]
[TimeControl "180+1"]
[Date "2022.02.23"]
[WhiteClock "0:00:22"]
[BlackClock "0:00:02"]

1. d4 {[%clk 0:02:26]}  Nf6 {[%clk 0:02:59]} 2. Nf3 {[%clk 0:02:23]}  c5 {[%clk 0:03:00]} 3. e3 {[%clk 0:02:22]}  e6 {[%clk 0:02:56]} 4. Bd3 {[%clk 0:02:21]}  d5 {[%clk 0:02:55]} 5. c3 {[%clk 0:02:20]}  Nc6 {[%clk 0:02:55]} 6. Qe2 {[%clk 0:02:18]}  Bd6 {[%clk 0:02:41]} 7. Nbd2 {[%clk 0:02:14]}  O-O {[%clk 0:02:40]} 8. dxc5 {[%clk 0:02:13]}  Bxc5 {[%clk 0:02:40]} 9. e4 {[%clk 0:02:14]}  e5 {[%clk 0:02:30]} 10. h3 {[%clk 0:02:13]}  a6 {[%clk 0:02:23]} 11. O-O {[%clk 0:02:08]}  Ba7 {[%clk 0:02:14]} 12. Rd1 {[%clk 0:01:56]}  dxe4 {[%clk 0:01:44]} 13. Nxe4 {[%clk 0:01:50]}  Nxe4 {[%clk 0:01:40]} 14. Bxe4 {[%clk 0:01:48]}  Qf6 {[%clk 0:01:31]} 15. Bg5 {[%clk 0:01:41]}  Qe6 {[%clk 0:01:28]} 16. Bd5 {[%clk 0:01:34]}  Qe8 {[%clk 0:01:11]} 17. Bh4 {[%clk 0:01:29]}  Bd7 {[%clk 0:00:46]} 18. Ng5 {[%clk 0:01:14]}  h6 {[%clk 0:00:31]} 19. Ne4 {[%clk 0:00:48]}  Be6 {[%clk 0:00:15]} 20. Bf6 {[%clk 0:00:28]}  Ne7 {[%clk 0:00:06]} 21. Bxe6 {[%clk 0:00:27]}  fxe6 {[%clk 0:00:06]} 22. Bxe5 {[%clk 0:00:26]}  Ng6 {[%clk 0:00:06]} 23. Bg3 {[%clk 0:00:24]}  Rf5 {[%clk 0:00:06]} 24. Nd6 {[%clk 0:00:23]}  Qf8 {[%clk 0:00:02]} 25. Qxe6+ {[%clk 0:00:22]} 1-0


[Site "https://www.chess.com"]

[Event "Titled Tuesday Blitz February 22 Late 2022"]
[White "Aukhatov, Roman"]
[Black "Gomez Ledo, Roberto Carlos"]
[WhiteFideId "44150768"]
[BlackFideId "3507076"]
[WhiteElo "2112"]
[BlackElo "2379"]
[Result "1-0"]
[Round "03"]
[TimeControl "180+1"]
[Date "2022.02.23"]
[WhiteClock "0:00:23"]
[BlackClock "0:00:08"]

1. Nf3 {[%clk 0:03:00]}  Nf6 {[%clk 0:02:58]} 2. c4 {[%clk 0:03:00]}  e6 {[%clk 0:02:58]} 3. g3 {[%clk 0:03:00]}  d5 {[%clk 0:02:57]} 4. Bg2 {[%clk 0:03:00]}  Be7 {[%clk 0:02:58]} 5. d4 {[%clk 0:03:00]}  O-O {[%clk 0:02:58]} 6. O-O {[%clk 0:03:00]}  dxc4 {[%clk 0:02:58]} 7. Ne5 {[%clk 0:03:00]}  Nc6 {[%clk 0:02:57]} 8. Nxc6 {[%clk 0:03:00]}  bxc6 {[%clk 0:02:56]} 9. Na3 {[%clk 0:03:01]}  Bxa3 {[%clk 0:02:54]} 10. bxa3 {[%clk 0:03:02]}  Ba6 {[%clk 0:02:52]} 11. Qd2 {[%clk 0:03:03]}  Rb8 {[%clk 0:02:46]} 12. Qa5 {[%clk 0:03:02]}  Rb6 {[%clk 0:02:44]} 13. Rd1 {[%clk 0:02:50]}  Nd5 {[%clk 0:02:40]} 14. e4 {[%clk 0:02:47]}  Nf6 {[%clk 0:02:25]} 15. a4 {[%clk 0:02:47]}  Qc8 {[%clk 0:02:07]} 16. Ba3 {[%clk 0:02:46]}  Re8 {[%clk 0:01:55]} 17. h3 {[%clk 0:02:43]}  Qb7 {[%clk 0:01:41]} 18. g4 {[%clk 0:02:38]}  Rb8 {[%clk 0:01:36]} 19. Qc3 {[%clk 0:02:11]}  Nd7 {[%clk 0:01:10]} 20. e5 {[%clk 0:02:10]}  Qc8 {[%clk 0:00:40]} 21. f4 {[%clk 0:02:02]}  Bb7 {[%clk 0:00:36]} 22. Bc5 {[%clk 0:01:56]}  Ra6 {[%clk 0:00:27]} 23. a5 {[%clk 0:01:54]}  Ba8 {[%clk 0:00:23]} 24. Rab1 {[%clk 0:01:22]}  Rb5 {[%clk 0:00:21]} 25. Bb4 {[%clk 0:00:29]}  c5 {[%clk 0:00:18]} 26. dxc5 {[%clk 0:00:29]}  Bxg2 {[%clk 0:00:17]} 27. Kxg2 {[%clk 0:00:30]}  Nxc5 {[%clk 0:00:11]} 28. Qxc4 {[%clk 0:00:27]}  Qa8+ {[%clk 0:00:08]} 29. Kh2 {[%clk 0:00:23]} 1-0


[Site "https://www.chess.com"]

[Event "Titled Tuesday Blitz February 22 Late 2022"]
[White "Bouget, Alexandre"]
[Black "Kim, Sergey"]
[WhiteFideId "681318"]
[BlackFideId "13700570"]
[WhiteElo "2178"]
[BlackElo "2640"]
[Result "1-0"]
[Round "03"]
[TimeControl "180+1"]
[Date "2022.02.23"]
[WhiteClock "0:00:16"]
[BlackClock "0:01:07"]

1. d4 {[%clk 0:03:00]}  Nf6 {[%clk 0:02:59]} 2. c4 {[%clk 0:03:00]}  g6 {[%clk 0:02:59]} 3. Nc3 {[%clk 0:02:55]}  Bg7 {[%clk 0:02:59]} 4. e4 {[%clk 0:02:54]}  d6 {[%clk 0:03:00]} 5. Nge2 {[%clk 0:02:55]}  O-O {[%clk 0:03:00]} 6. Ng3 {[%clk 0:02:55]}  e5 {[%clk 0:03:00]} 7. d5 {[%clk 0:02:54]}  a5 {[%clk 0:03:00]} 8. h4 {[%clk 0:02:54]}  c6 {[%clk 0:02:53]} 9. h5 {[%clk 0:02:54]}  cxd5 {[%clk 0:02:49]} 10. cxd5 {[%clk 0:02:55]}  Nbd7 {[%clk 0:02:49]} 11. Bg5 {[%clk 0:02:36]}  Nc5 {[%clk 0:02:46]} 12. Qd2 {[%clk 0:02:35]}  a4 {[%clk 0:02:42]} 13. Bh6 {[%clk 0:01:59]}  Bxh6 {[%clk 0:02:33]} 14. Qxh6 {[%clk 0:01:58]}  Ng4 {[%clk 0:02:33]} 15. Qd2 {[%clk 0:01:51]}  Qf6 {[%clk 0:02:22]} 16. f3 {[%clk 0:01:47]}  Qf4 {[%clk 0:02:19]} 17. Qxf4 {[%clk 0:01:37]}  exf4 {[%clk 0:02:18]} 18. fxg4 {[%clk 0:01:25]}  fxg3 {[%clk 0:02:18]} 19. Be2 {[%clk 0:01:22]}  Bd7 {[%clk 0:02:12]} 20. O-O {[%clk 0:01:18]}  Rfe8 {[%clk 0:02:04]} 21. Bf3 {[%clk 0:01:15]}  Kg7 {[%clk 0:01:58]} 22. Rfe1 {[%clk 0:01:07]}  Kf6 {[%clk 0:01:55]} 23. Re2 {[%clk 0:01:06]}  Re5 {[%clk 0:01:52]} 24. Rf1 {[%clk 0:01:05]}  Kg5 {[%clk 0:01:52]} 25. Re3 {[%clk 0:00:56]}  Rf8 {[%clk 0:01:46]} 26. Bd1 {[%clk 0:00:54]}  Kh4 {[%clk 0:01:46]} 27. Rf6 {[%clk 0:00:49]}  Bxg4 {[%clk 0:01:40]} 28. hxg6 {[%clk 0:00:41]}  hxg6 {[%clk 0:01:32]} 29. Bxg4 {[%clk 0:00:30]}  Kxg4 {[%clk 0:01:30]} 30. Rxd6 {[%clk 0:00:30]}  Nxe4 {[%clk 0:01:26]} 31. Rxe4+ {[%clk 0:00:29]}  Rxe4 {[%clk 0:01:26]} 32. Nxe4 {[%clk 0:00:30]}  Kf4 {[%clk 0:01:25]} 33. Nc3 {[%clk 0:00:27]}  a3 {[%clk 0:01:23]} 34. bxa3 {[%clk 0:00:27]}  Rc8 {[%clk 0:01:22]} 35. Ne2+ {[%clk 0:00:25]}  Kg4 {[%clk 0:01:19]} 36. Kf1 {[%clk 0:00:24]}  Rc2 {[%clk 0:01:18]} 37. Ke1 {[%clk 0:00:23]}  Rxa2 {[%clk 0:01:17]} 38. Rf6 {[%clk 0:00:23]}  Rxa3 {[%clk 0:01:15]} 39. d6 {[%clk 0:00:23]}  Rd3 {[%clk 0:01:14]} 40. Rf4+ {[%clk 0:00:23]}  Kg5 {[%clk 0:01:13]} 41. Rd4 {[%clk 0:00:24]}  Rxd4 {[%clk 0:01:13]} 42. Nxd4 {[%clk 0:00:24]}  Kf6 {[%clk 0:01:13]} 43. Ke2 {[%clk 0:00:20]}  b5 {[%clk 0:01:09]} 44. Nxb5 {[%clk 0:00:16]}  Ke6 {[%clk 0:01:09]} 45. Kf3 {[%clk 0:00:16]}  f5 {[%clk 0:01:07]} 46. Kxg3 {[%clk 0:00:16]}  g5 {[%clk 0:01:08]} 47. Kf3 {[%clk 0:00:17]}  Kd7 {[%clk 0:01:08]} 48. Ke3 {[%clk 0:00:16]}  Kc6 {[%clk 0:01:07]} 49. Kd4 {[%clk 0:00:16]} 1-0


[Site "https://www.chess.com"]